bitfinex-derivatives/quotes_SOLF0:USTF0_20250416
["timestamp","ask_amount","ask_price","bid_price","bid_amount"]
[1744816167118,3.904e-05,128.03,128.01,7.86411269]
[1744816167519,3.904e-05,128.03,128.01,0.05171269]
[1744816167912,3.904e-05,128.03,128.01,7.86391269]
[1744816168113,3.904e-05,128.03,128.01,0.05171269]
[1744816168717,3.904e-05,128.03,128.01,7.86411269]
[1744816169718,3.904e-05,128.03,128.01,0.05171269]
[1744816170418,3.904e-05,128.03,128.01,7.86381269]
[1744816171209,3.904e-05,128.03,128.01,0.05171269]
[1744816171416,29.51161493,128.02,127.91,48.8165]
[1744816171713,37.32501493,128.0,127.96,7.8151]
[1744816171911,33.18,127.99,127.92,4.1228]
[1744816172115,586.07,128.09,127.96,29.51161493]
[1744816172116,33.18,128.07,127.96,29.51161493]
[1744816172317,40.9891,128.07,128.03,7.8109]
[1744816172718,0.05581905,128.06,128.04,0.04968551]
[1744816172919,7.81,128.05,127.98,4.1228]
[1744816173122,7.81,128.05,127.96,29.51161493]
[1744816173123,29.51161493,128.04,127.94,33.18]
[1744816173323,7.8121,128.02,127.98,7.8142]
[1744816173524,33.18,128.03,127.98,7.8142]
[1744816173720,33.18,128.03,127.94,33.18]
[1744816173924,0.05835175,128.0,127.97,0.05820235]
[1744816174518,0.05835175,128.0,127.99,7.8137]
[1744816174823,0.05835175,128.0,127.97,0.05820235]
[1744816175020,0.05835175,128.0,127.98,7.8139]
[1744816175229,0.05835175,128.0,127.97,0.05820235]
[1744816175621,0.05835175,128.0,127.99,7.8137]
[1744816176924,33.18,128.03,128.01,7.8119]
[1744816178023,33.22757674,128.03,128.01,7.86995202]
[1744816179128,33.22757674,128.03,128.01,0.05805202]
[1744816179526,51.67612165,128.03,127.94,33.18]
[1744816179725,18.44854491,128.01,127.97,7.8145]
[1744816180427,18.44854491,128.01,127.98,7.8143]
[1744816180628,18.49962155,128.01,127.98,7.86740195]
[1744816180924,0.05107664,128.01,127.98,0.05310195]
[1744816182232,0.05107664,128.01,127.99,7.8137]
[1744816182932,0.05107664,128.01,127.98,0.05310195]
[1744816183431,0.05107664,128.01,128.0,7.8131]
[1744816184234,18.44854491,128.05,128.02,7.8114]
[1744816185133,18.44854491,128.05,128.03,7.8112]
[1744816185334,18.50309703,128.05,128.03,7.8112]
[1744816186726,18.50309703,128.05,128.02,0.05121998]
[1744816186931,18.44854491,128.03,128.02,0.05121998]
[1744816187132,18.44854491,128.03,128.02,7.86311998]
[1744816187736,18.44854491,128.03,128.02,0.05121998]
[1744816188439,18.44854491,128.03,128.02,7.86311998]
[1744816189038,18.44854491,128.03,128.02,0.05121998]
[1744816189938,18.44854491,128.03,128.02,7.86311998]
[1744816191139,18.44854491,128.03,128.02,0.05121998]
[1744816191944,0.05455212,128.05,128.02,0.05121998]
[1744816192339,18.50309703,128.05,128.02,0.05121998]
[1744816192539,18.50309703,128.05,128.03,7.8109]
[1744816192841,18.50309703,128.05,128.02,0.05121998]
[1744816193037,18.50309703,128.05,128.04,7.8106]
[1744816193845,0.05455212,128.05,128.04,7.8106]
[1744816199144,5.212e-05,128.05,128.04,7.8106]
[1744816199345,5.212e-05,128.05,128.04,26.25914491]
[1744816204756,51.56854491,128.13,128.04,26.25914491]
[1744816205145,51.56854491,128.13,128.1,7.8066]
[1744816205657,51.56854491,128.13,128.1,7.85861465]
[1744816206754,33.12,128.13,128.1,0.05201465]
[1744816207061,51.56854491,128.13,128.1,0.05201465]
[1744816207456,51.56854491,128.13,128.1,7.85851465]
[1744816207658,51.56854491,128.13,128.1,0.05201465]
[1744816208665,51.56854491,128.13,128.11,7.8061]
[1744816208852,33.12,128.13,128.1,0.05201465]
[1744816209053,33.12,128.16,128.1,0.05201465]
[1744816209457,33.12,128.16,128.1,18.50055956]
[1744816210759,33.12,128.19,128.12,18.44854491]
[1744816210959,33.12,128.19,128.14,0.05758914]
[1744816212058,33.12,128.19,128.18,7.8021]
[1744816212461,51.56854491,128.22,128.2,7.8006]
[1744816212964,51.56854491,128.22,128.2,7.85769944]
[1744816214166,51.56854491,128.22,128.21,7.8003]
[1744816214361,33.12,128.22,128.21,7.8003]
[1744816214865,18.44854491,128.25,128.2,0.05709944]
[1744816216065,18.44854491,128.27,128.2,0.05709944]
[1744816216265,18.44854491,128.25,128.2,0.05709944]
[1744816216662,18.44854491,128.25,128.24,7.7985]
[1744816216864,18.44854491,128.25,128.23,0.05371064]
[1744816217059,51.54854491,128.24,128.18,2.1586]
[1744816217962,33.1,128.24,128.23,7.7991]
[1744816218364,33.1,128.24,128.2,0.05764026]
[1744816218564,33.1,128.24,128.22,7.7994]
[1744816219266,33.1,128.24,128.23,7.7991]
[1744816219468,33.1,128.24,128.2,0.05764026]
[1744816219771,33.1,128.24,128.22,7.7993]
[1744816219965,33.1,128.24,128.2,0.05764026]
[1744816220869,33.1,128.24,128.23,7.7991]
[1744816221069,0.05371064,128.25,128.2,18.50618517]
[1744816221369,18.44854491,128.27,128.24,7.7979]
[1744816221668,2.1249,128.32,128.23,18.44854491]
[1744816221966,18.44854491,128.33,128.25,18.44854491]
[1744816222166,33.1,128.34,128.26,33.1]
[1744816222367,33.1,128.34,128.32,7.7935]
[1744816222561,33.1,128.34,128.27,18.44854491]
[1744816222957,33.1,128.34,128.31,7.7937]
[1744816223165,33.1,128.34,128.29,0.0572996]
[1744816223968,18.44854491,128.31,128.21,2.1711]
[1744816224168,18.44854491,128.28,128.21,2.1711]
[1744816224669,37.2225,128.3,128.21,2.1711]
[1744816224864,0.0515511,128.27,128.24,0.05085636]
[1744816225567,0.0515511,128.27,128.25,7.7975]
[1744816225767,33.08,128.32,128.24,18.49940127]
[1744816225967,33.08,128.32,128.25,2.119]
[1744816226274,33.08,128.32,128.26,18.44854491]
[1744816226668,33.08,128.32,128.3,7.7948]
[1744816226869,33.08,128.32,128.3,0.05008695]
[1744816227371,33.08,128.35,128.3,0.05008695]
[1744816227668,33.08,128.35,128.3,7.84458695]
[1744816228667,7.7912,128.36,128.3,7.84458695]
[1744816228868,33.08,128.35,128.31,7.7941]
[1744816229062,33.08,128.35,128.32,0.05778665]
[1744816229468,590.8764789,128.37,128.32,7.85138665]
[1744816229665,33.02,128.36,128.32,7.85138665]
[1744816229870,40.8115,128.36,128.32,0.05778665]
[1744816230975,33.02,128.4,128.32,0.05778665]
[1744816231173,33.02,128.4,128.35,0.05262791]
[1744816231371,7.7899,128.39,128.35,7.84402791]
[1744816232074,7.7899,128.39,128.36,7.7911]
[1744816232275,40.8089,128.4,128.35,0.05262791]
[1744816232471,33.02,128.4,128.35,0.05262791]
[1744816232877,594.34,128.43,128.35,29.42910681]
[1744816233076,594.34,128.43,128.38,0.05484876]
[1744816233274,33.0,128.43,128.41,7.7878]
[1744816233474,33.0,128.43,128.36,33.0]
[1744816233871,33.0,128.43,128.4,7.7883]
[1744816234075,33.0,128.43,128.38,0.05223137]
[1744816234471,29.3764789,128.39,128.29,33.0]
[1744816234670,29.3764789,128.37,128.29,33.0]
[1744816235081,33.0,128.39,128.26,8.89006]
[1744816235082,29.3764789,128.33,128.26,8.89006]
[1744816235274,62.3764789,128.33,128.28,7.7957]
[1744816235474,7.84473263,128.32,128.29,0.05582417]
[1744816235674,0.05063263,128.32,128.29,0.05582417]
[1744816236381,29.3764789,128.31,128.26,8.89006]
[1744816237080,7.7951,128.3,128.26,8.89006]
[1744816237480,0.05509222,128.29,128.27,0.05518076]
[1744816237683,0.05509222,128.29,128.27,7.85168076]
[1744816239683,7.85059222,128.29,128.27,0.05518076]
[1744816240178,7.796,128.28,128.27,0.05518076]
[1744816241787,7.7985,128.24,128.19,2.1509]
[1744816241983,29.3764789,128.24,128.16,4.2711]
[1744816242283,7.8031,128.17,128.13,7.8048]
[1744816242483,62.3764789,128.18,128.1,33.0]
[1744816242680,62.3764789,128.18,128.08,35.7402789]
[1744816242981,0.05255478,128.14,128.12,7.85847748]
[1744816243380,0.05255478,128.14,128.12,0.05277748]
[1744816243589,33.05255478,128.14,128.12,0.05277748]
[1744816244182,70.23393368,128.14,128.12,0.05277748]
[1744816244484,62.42903368,128.14,128.05,33.0]
[1744816244686,7.8059,128.12,128.07,7.8082]
[1744816245286,33.0,128.14,128.06,29.3764789]
[1744816245483,0.05198246,128.11,128.08,0.05233463]
[1744816245878,8.246e-05,128.11,128.1,7.807]
[1744816246086,33.02,128.21,128.1,58.7529578]
[1744816246383,40.8206,128.21,128.13,29.3764789]
[1744816246583,40.8206,128.21,128.13,62.3964789]
[1744816246883,7.801,128.2,128.15,7.8037]
[1744816247080,7.801,128.2,128.16,0.05404188]
[1744816247281,0.05244187,128.19,128.16,0.05404188]
[1744816247482,0.05244187,128.19,128.16,7.85734188]
[1744816247685,0.05244187,128.19,128.16,0.05404188]
[1744816247988,0.05244187,128.19,128.16,7.85734188]
[1744816248188,0.05244187,128.19,128.16,0.05404188]
[1744816249188,29.3764789,128.18,128.16,0.05404188]
[1744816249385,33.02,128.17,127.99,15.6266]
[1744816249684,29.3764789,128.12,128.01,33.6066789]
[1744816249987,33.02,128.11,128.01,33.6066789]
[1744816250383,40.8265,128.11,128.06,7.8089]
[1744816250587,0.05136416,128.1,128.05,0.05572512]
[1744816251583,7.85846416,128.1,128.06,7.8092]
[1744816252096,0.05136416,128.1,128.05,0.05572512]
[1744816253092,0.05136416,128.1,128.05,50.11321176]
[1744816253293,33.04,128.14,128.11,7.806]
[1744816254291,33.04,128.14,128.08,1.9877]
[1744816254492,0.05377762,128.14,128.11,0.05426049]
[1744816254693,33.04,128.13,128.11,0.05426049]
[1744816254895,47.91398664,128.12,128.01,80.95398664]
[1744816255095,47.91398664,128.12,128.02,2.0383]
[1744816255391,47.91398664,128.12,128.03,47.91398664]
[1744816255594,33.04,128.13,128.03,47.91398664]
[1744816255994,0.04971147,128.09,128.07,7.86026315]
[1744816256598,0.04971147,128.09,128.07,0.05186315]
[1744816256994,47.91398664,128.08,128.02,1.9877]
[1744816257191,47.91398664,128.08,127.98,594.56]
[1744816257399,33.06,128.09,127.99,47.91398664]
[1744816257792,47.91398664,128.08,127.98,594.56]
[1744816258097,0.05299353,128.04,128.03,7.8112]
[1744816258292,0.0505975,128.05,128.03,7.8112]
[1744816260699,33.0505975,128.05,128.02,0.04950042]
[1744816261198,33.0505975,128.05,128.02,7.86090042]
[1744816261399,0.0505975,128.05,128.02,0.04950042]
[1744816261794,0.0505975,128.05,128.04,7.8106]
[1744816264004,0.0505975,128.05,128.02,0.04950042]
[1744816265202,7.8109,128.04,128.02,0.04950042]
[1744816265505,40.8309,128.04,128.02,0.04950042]
[1744816265803,80.93398664,128.04,127.95,2.1643]
[1744816265996,47.91398664,128.02,127.95,2.1643]
[1744816266398,7.8134,128.0,127.97,7.8146]
[1744816266598,33.02,128.0,127.95,2.1643]
[1744816266897,33.02,128.03,127.96,83.03218664]
[1744816267202,33.02,128.05,128.0,47.91398664]
[1744816267403,33.02,128.08,128.05,7.8095]
[1744816267596,33.02,128.08,128.01,4.1047]
[1744816268192,33.02,128.11,128.04,47.91398664]
[1744816268399,40.8249,128.14,128.1,7.8067]
[1744816268601,33.02,128.17,128.1,47.91398664]
[1744816269201,40.8229,128.17,128.13,7.8048]
[1744816269396,0.05697961,128.15,128.12,0.05860934]
[1744816270005,0.05697961,128.15,128.13,7.8051]
[1744816270304,0.05697961,128.15,128.12,0.05860934]
[1744816270708,0.05697961,128.15,128.13,7.8048]
[1744816271510,0.05697961,128.15,128.12,0.05860934]
[1744816271805,47.91398664,128.14,128.05,6.4702]
[1744816272003,33.02,128.13,128.05,6.4702]
[1744816272603,0.05785653,128.1,128.08,0.05426983]
[1744816273006,0.05785653,128.1,128.09,7.8076]
[1744816273509,0.05785653,128.1,128.08,0.05426983]
[1744816274309,33.02,128.13,128.08,0.05426983]
[1744816274810,40.8245,128.15,128.1,7.8067]
[1744816275009,40.8245,128.15,128.06,80.93398664]
[1744816275309,33.02,128.15,128.06,80.93398664]
[1744816275510,0.05825955,128.12,128.09,0.05239265]
[1744816275705,33.02,128.15,128.1,47.91398664]
[1744816275910,40.824,128.15,128.11,7.806]
[1744816276312,33.02,128.15,128.08,47.91398664]
[1744816276508,33.02,128.15,128.07,47.91398664]
[1744816276811,0.05306363,128.12,128.1,0.05408377]
[1744816277107,0.05306363,128.12,128.11,7.8058]
[1744816277307,33.02,128.15,128.1,0.05408377]
[1744816277707,33.02,128.15,128.13,7.8048]
[1744816278107,33.02,128.15,128.09,47.91398664]
[1744816278503,0.05372309,128.13,128.11,0.05699911]
[1744816278709,0.05372309,128.13,128.12,7.8056]
[1744816279612,0.05372309,128.13,128.11,7.86309911]
[1744816279815,0.05372309,128.13,128.11,0.05699911]
[1744816281114,0.05372309,128.13,128.12,7.8058]
[1744816281913,0.05372309,128.13,128.11,7.86319911]
[1744816282114,0.05372309,128.13,128.11,0.05699911]
[1744816284117,0.05372309,128.13,128.11,7.86289911]
[1744816284508,0.05372309,128.13,128.11,0.05699911]
[1744816284709,7.8058,128.12,128.11,0.05699911]
[1744816285516,7.8068,128.11,128.08,7.8081]
[1744816285717,40.8068,128.11,128.08,7.8081]
[1744816286210,7.807,128.1,128.07,7.8088]
[1744816286619,7.86429695,128.1,128.07,7.86795116]
[1744816286918,7.8082,128.08,128.07,0.05915116]
[1744816288018,0.05729695,128.1,128.07,0.05915116]
[1744816289019,0.05729695,128.1,128.08,7.8079]
[1744816289419,0.05729695,128.1,128.07,0.05915116]
[1744816289718,0.05729695,128.1,128.08,7.8079]
[1744816290117,0.05729695,128.1,128.07,0.05915116]
[1744816290819,0.05729695,128.1,128.09,7.8076]
[1744816292114,9.695e-05,128.1,128.09,7.8076]
[1744816292422,32.96,128.17,128.14,7.804]
[1744816292625,32.96,128.16,128.09,2.1832]
[1744816293119,32.96,128.16,128.14,7.8042]
[1744816293318,32.96,128.16,128.1,47.91398664]
[1744816293622,32.96,128.22,128.14,47.97131704]
[1744816293915,32.96,128.22,128.16,47.91398664]
[1744816294119,32.96,128.22,128.17,4.2441]
[1744816294512,32.96,128.22,128.15,47.91398664]
[1744816294717,0.0520336,128.2,128.17,0.05756575]
[1744816295622,0.0520336,128.2,128.17,7.86006575]
[1744816296119,0.0520336,128.2,128.19,7.8015]
[1744816298621,32.96,128.25,128.18,2.0608]
[1744816298831,32.96,128.25,128.19,47.91398664]
[1744816299327,32.96,128.25,128.23,7.7986]
[1744816299826,32.96,128.25,128.23,7.85578205]
[1744816300129,32.96,128.25,128.24,7.7985]
[1744816301133,32.96,128.28,128.23,0.05718205]
[1744816301334,32.94,128.31,128.23,47.97116869]
[1744816301530,32.94,128.31,128.26,0.0525564]
[1744816302235,32.94,128.31,128.29,7.7951]
[1744816302431,32.94,128.31,128.29,7.85083481]
[1744816302833,32.94,128.31,128.3,7.7948]
[1744816303238,4.1448,128.36,128.29,0.05573481]
[1744816303239,32.94,128.34,128.29,0.05573481]
[1744816303540,32.94,128.34,128.31,7.7938]
[1744816304138,32.94,128.34,128.32,7.7933]
[1744816304437,32.94,128.34,128.32,7.8486527]
[1744816304735,32.94,128.4,128.33,47.91398664]
[1744816304940,32.94,128.41,128.35,0.05181623]
[1744816305141,32.94,128.41,128.37,0.05746049]
[1744816305334,32.94,128.41,128.38,7.7898]
[1744816305534,32.94,128.41,128.37,0.05746049]
[1744816305839,32.94,128.41,128.38,7.7895]
[1744816306237,35.01,128.44,128.37,0.05746049]
[1744816306442,32.94,128.44,128.41,7.7881]
[1744816306737,32.94,128.44,128.41,0.05424463]
[1744816306932,32.94,128.44,128.41,7.84204463]
[1744816307131,32.94,128.44,128.41,0.05424463]
[1744816307940,32.94,128.44,128.41,7.84194463]
[1744816308441,32.94,128.44,128.41,0.05424463]
[1744816309043,32.94,128.44,128.41,7.84234463]
[1744816309242,32.94,128.44,128.41,0.05424463]
[1744816309444,183.6018309,128.6,128.43,47.91398664]
[1744816309737,47.91398664,128.54,128.49,0.050108]
[1744816310041,47.91398664,128.54,128.5,0.05088556]
[1744816310537,7.781,128.53,128.5,0.05088556]
[1744816310841,32.92,128.52,128.5,0.05088556]
[1744816311942,80.83398664,128.52,128.5,0.05088556]
[1744816312142,80.83398664,128.52,128.42,32.92]
[1744816312338,47.91398664,128.5,128.4,52.16838664]
[1744816312547,47.91398664,128.5,128.4,85.08838664]
[1744816312746,7.7827,128.5,128.42,47.91398664]
[1744816312947,80.83398664,128.52,128.42,47.91398664]
[1744816313242,0.05629052,128.48,128.46,0.04960014]
[1744816313433,32.9,128.47,128.46,0.04960014]
[1744816314246,0.05629052,128.48,128.46,0.04960014]
[1744816314945,7.84029052,128.48,128.46,0.04960014]
[1744816315241,0.05629052,128.48,128.46,0.04960014]
[1744816316642,601.801,128.53,128.5,7.7823]
[1744816316843,32.9,128.57,128.48,80.81398664]
[1744816317048,32.9,128.57,128.49,4.1232]
[1744816317344,32.9,128.57,128.55,7.7793]
[1744816317648,32.9,128.57,128.5,47.91398664]
[1744816318145,32.9,128.57,128.52,0.05210641]
[1744816319250,40.6786,128.57,128.52,0.05210641]
[1744816319952,40.6786,128.57,128.52,7.83330641]
[1744816320147,40.6786,128.57,128.52,0.05210641]
[1744816320350,32.9,128.57,128.52,0.05210641]
[1744816320543,52.04748664,128.62,128.52,0.05210641]
[1744816320745,32.84,128.6,128.56,0.05998755]
[1744816320948,32.84,128.63,128.56,0.05998755]
[1744816321146,560.6,128.65,128.58,7.7777]
[1744816321345,593.44,128.65,128.6,0.05667138]
[1744816322452,47.91398664,128.62,128.47,80.75398664]
[1744816322649,82.89778664,128.61,128.5,47.91398664]
[1744816322850,32.84,128.64,128.52,47.91398664]
[1744816323053,47.91398664,128.63,128.52,47.91398664]
[1744816323455,0.05531139,128.59,128.56,0.05331072]
[1744816323857,0.05531139,128.59,128.58,7.7778]
[1744816324253,32.84,128.64,128.56,80.80729736]
[1744816324451,7.7734,128.66,128.58,47.91398664]
[1744816324652,32.84,128.67,128.58,47.91398664]
[1744816324957,32.84,128.7,128.6,47.91398664]
[1744816325157,47.91398664,128.67,128.58,32.82]
[1744816325354,32.82,128.66,128.61,0.05740915]
[1744816325654,7.774,128.65,128.61,0.05740915]
[1744816326048,32.82,128.66,128.61,0.05740915]
[1744816326249,47.91398664,128.63,128.5,47.91398664]
[1744816326451,47.91398664,128.57,128.49,2.0551]
[1744816326648,32.82,128.56,128.49,2.0551]
[1744816327452,0.05388716,128.54,128.51,0.05691007]
[1744816327754,7.7809,128.53,128.51,0.05691007]
[1744816327956,0.05388716,128.54,128.51,0.05691007]
[1744816328153,7.7843,128.48,128.41,2.1525]
[1744816328357,32.82,128.48,128.41,2.1525]
[1744816329259,0.05401053,128.46,128.45,7.7856]
[1744816329859,1.053e-05,128.46,128.45,7.7856]
[1744816332355,32.82,128.54,128.45,55.69398664]
[1744816332561,32.82,128.54,128.42,362.0]
[1744816332856,32.82,128.54,128.45,47.91398664]
[1744816333059,47.91398664,128.53,128.43,32.82]
[1744816333562,0.05494112,128.49,128.47,0.05037413]
[1744816333762,32.87974185,128.49,128.47,0.05037413]
[1744816335557,80.79372849,128.49,128.41,2.1864]
[1744816335764,47.91398664,128.47,128.37,34.8392]
[1744816336063,1.9955,128.48,128.38,52.22718664]
[1744816336263,47.91398664,128.47,128.38,4.3132]
[1744816336465,55.69878664,128.47,128.42,7.7875]
[1744816336662,0.05805601,128.44,128.42,7.7875]
[1744816336966,32.87805601,128.44,128.42,7.7875]
[1744816337162,32.87805601,128.44,128.41,7.84520147]
[1744816337466,32.87805601,128.44,128.41,0.05730147]
[1744816338967,32.87805601,128.44,128.42,7.7875]
[1744816339167,32.87805601,128.44,128.41,0.05730147]
[1744816340369,32.87805601,128.44,128.43,7.7869]
[1744816341760,32.87805601,128.44,128.41,0.05730147]
[1744816341964,47.91398664,128.43,128.32,32.84]
[1744816342166,47.91398664,128.41,128.32,32.84]
[1744816342367,32.84,128.4,128.39,7.7889]
[1744816342866,32.84,128.4,128.32,32.84]
[1744816343067,32.84,128.4,128.37,7.7902]
[1744816343470,47.91398664,128.39,128.35,0.05935897]
[1744816344271,47.91398664,128.39,128.37,7.7902]
[1744816344966,47.91398664,128.39,128.38,7.7899]
[1744816345171,32.89121022,128.4,128.35,0.05935897]
[1744816346071,47.91398664,128.39,128.35,0.05935897]
[1744816346374,55.70378664,128.39,128.36,7.7907]
[1744816346672,47.91398664,128.37,128.25,48.4346]
[1744816346870,47.91398664,128.33,128.25,52.6398]
[1744816347773,0.0532015,128.3,128.28,0.0534201]
[1744816348075,1.5e-06,128.3,128.29,7.7954]
[1744816350071,1.5e-06,128.3,128.21,32.86]
[1744816350275,55.70978664,128.29,128.21,37.0858]
[1744816350471,47.91398664,128.29,128.24,7.7979]
[1744816350779,7.7969,128.27,128.21,4.2258]
[1744816350977,32.84,128.26,128.21,4.2258]
[1744816351180,0.05024864,128.25,128.22,0.05317944]
[1744816352280,0.05024864,128.25,128.22,7.85247944]
[1744816352481,7.84824864,128.25,128.22,0.05317944]
[1744816352878,47.96423528,128.25,128.22,0.05317944]
[1744816353080,7.7989,128.24,128.22,0.05317944]
[1744816353282,47.96423528,128.25,128.22,0.05317944]
[1744816353474,0.05024864,128.25,128.22,7.85277944]
[1744816353677,0.05024864,128.25,128.22,0.05317944]
[1744816354280,0.05024864,128.25,128.24,7.7985]
[1744816355183,32.84,128.28,128.27,7.7966]
[1744816355479,32.86,128.33,128.26,47.91398664]
[1744816355681,40.6533,128.33,128.3,7.7945]
[1744816355873,80.77398664,128.33,128.22,80.77398664]
[1744816356075,32.86,128.33,128.24,47.91398664]
[1744816356277,0.05139628,128.29,128.26,0.04901861]
[1744816356675,0.05139628,128.29,128.28,7.796]
[1744816357980,0.05139628,128.29,128.26,0.04901861]
[1744816358481,0.05139628,128.29,128.28,7.796]
[1744816358681,0.05139628,128.29,128.26,0.04901861]
[1744816358983,0.05139628,128.29,128.28,7.796]
[1744816366483,32.86,128.33,128.32,7.7936]
[1744816366689,32.86,128.33,128.26,35.0121]
[1744816367086,40.6533,128.33,128.26,35.0121]
[1744816367387,32.86,128.33,128.26,35.0121]
[1744816367590,0.04966752,128.31,128.3,7.7944]
[1744816368290,0.04966752,128.31,128.29,7.7953]
[1744816369292,7.84396752,128.31,128.29,7.7953]
[1744816369490,0.04966752,128.31,128.29,7.7953]
[1744816370191,0.04966752,128.31,128.28,0.04923598]
[1744816371188,7.84416752,128.31,128.29,7.7952]
[1744816372092,47.96365416,128.31,128.28,0.04923598]
[1744816372489,7.7954,128.29,128.28,0.04923598]
[1744816372689,40.6554,128.29,128.28,0.04923598]
[1744816373494,7.7965,128.28,128.25,7.7977]
[1744816373686,47.91398664,128.28,128.14,378.96528385]
[1744816373886,47.91398664,128.26,128.15,54.20648664]
[1744816374090,32.86,128.25,128.19,47.91398664]
[1744816374393,32.86,128.26,128.25,7.7974]
[1744816374597,32.86,128.27,128.19,47.91398664]
[1744816374787,32.86,128.27,128.24,0.04955898]
[1744816375097,40.70620872,128.27,128.24,7.84765898]
[1744816375292,0.04910872,128.27,128.24,0.04955898]
[1744816376295,7.84580872,128.27,128.25,7.7975]
[1744816376495,0.04910872,128.27,128.25,7.7975]
[1744816376891,0.04910872,128.27,128.24,7.84775898]
[1744816377994,7.7973,128.26,128.24,7.84775898]
[1744816378297,0.04910872,128.27,128.24,0.04955898]
[1744816378895,0.04910872,128.27,128.26,7.7972]
[1744816379799,0.04910872,128.27,128.24,0.04955898]
[1744816380198,0.04910872,128.27,128.24,7.84755898]
[1744816380398,7.84600872,128.27,128.24,0.04955898]
[1744816380599,0.04910872,128.27,128.24,0.04955898]
[1744816380795,32.84,128.31,128.24,0.04955898]
[1744816381099,381.01502273,128.39,128.25,29.41280366]
[1744816381100,593.96,128.35,128.25,29.41280366]
[1744816381300,593.96,128.35,128.32,7.7936]
[1744816381695,7.7928,128.34,128.25,29.41280366]
[1744816381896,7.7928,128.34,128.31,7.7938]
[1744816382099,0.05346533,128.34,128.29,0.05735106]
[1744816382495,0.05346533,128.34,128.33,7.7927]
[1744816387298,0.05346533,128.34,128.32,0.05113628]
[1744816387603,29.46626899,128.34,128.24,6.3162]
[1744816387907,29.41280366,128.34,128.32,7.7933]
[1744816388201,29.41280366,128.34,128.24,6.3162]
[1744816388402,37.20550366,128.34,128.31,7.7938]
[1744816388799,29.46871519,128.34,128.31,7.84865841]
[1744816389003,7.7933,128.33,128.31,0.05485841]
[1744816389601,62.25280366,128.32,128.28,7.7957]
[1744816389904,32.84,128.32,128.24,6.3162]
[1744816390101,32.84,128.32,128.31,7.7942]
[1744816391102,32.84,128.32,128.3,0.0521858]
[1744816392006,40.6339,128.32,128.3,0.0521858]
[1744816392311,40.6339,128.32,128.3,7.8467858]
[1744816392600,7.7942,128.31,128.3,0.0521858]
[1744816394098,70.04670366,128.32,128.3,0.0521858]
[1744816394705,62.25280366,128.32,128.24,6.3162]
[1744816394906,29.41280366,128.29,128.24,2.1124]
[1744816395107,32.84,128.28,128.2,37.11]
[1744816395306,32.84,128.28,128.2,6.4693]
[1744816395707,29.41280366,128.27,128.2,6.4693]
[1744816395906,29.47252905,128.25,128.23,0.0552611]
[1744816396109,32.84,128.24,128.15,15.6072]
[1744816396311,29.41280366,128.23,128.15,6.5476]
[1744816396910,32.84,128.24,128.15,22.1554]
[1744816397107,0.05860278,128.21,128.18,0.05951242]
[1744816397306,0.05860278,128.21,128.2,7.8009]
[1744816399104,0.05860278,128.21,128.11,15.6126]
[1744816399309,32.84,128.2,128.13,4.1371]
[1744816399503,32.84,128.2,128.16,7.8029]
[1744816399704,32.84,128.2,128.13,4.1371]
[1744816399901,29.41280366,128.19,128.13,4.1371]
[1744816400108,32.84,128.2,128.13,4.1371]
[1744816400309,0.05957417,128.17,128.15,0.05370494]
[1744816402311,32.86,128.16,128.15,0.05370494]
[1744816402611,0.05957417,128.17,128.15,0.05370494]
[1744816403314,0.05957417,128.17,128.16,7.8033]
[1744816403516,0.05957417,128.17,128.15,0.05370494]
[1744816404210,0.05957417,128.17,128.16,7.8033]
[1744816404815,29.47237783,128.17,128.15,0.05370494]
[1744816405213,0.05957417,128.17,128.15,0.05370494]
[1744816405815,0.05957417,128.17,128.15,7.85750494]
[1744816406010,0.05957417,128.17,128.15,0.05370494]
[1744816407113,0.05957417,128.17,128.15,7.85730494]
[1744816407613,0.05957417,128.17,128.15,0.05370494]
[1744816408216,7.8033,128.16,128.15,0.05370494]
[1744816408417,0.05957417,128.17,128.15,0.05370494]
[1744816408619,29.47237783,128.17,128.09,6.1233]
[1744816408818,37.21780366,128.14,128.1,7.8066]
[1744816409117,32.86,128.13,128.09,6.1233]